fUST/lending_fUST_20260412
["ID","MTS","AMOUNT","RATE_DAILY","PERIOD"]
[420346550,1776006639408,-151.0,0.0001,2]
[420346551,1776006639417,-151.0,0.0001,2]
[420346552,1776006639451,-151.0,0.0001,2]
[420346553,1776006639460,-167.87872463,0.0001,2]
[420346554,1776006639482,-258.0,0.00010316,2]
[420346555,1776006639502,-3609.34139615,0.00010427,2]
[420346556,1776006639523,-500.0,0.00010427,2]
[420346557,1776006639548,-500.0,0.00010701,2]
[420346558,1776006639570,-500.0,0.00010975,2]
[420346559,1776006639581,-3823.61018017,0.00011512,2]
[420346560,1776006639595,-285.0,0.00012316,2]
[420346561,1776006639617,-4033.75818751,0.00012597,2]
[420346562,1776006639630,-4037.87896419,0.00013683,2]
[420346563,1776006639639,-922.95,0.00013698,2]
[420346564,1776006639667,-1000.0,0.00013699,2]
[420346565,1776006639677,-644.0,0.00013775,2]
[420346566,1776006639687,-1407.0,0.00013775,2]
[420346567,1776006639698,-312.0,0.00014316,2]
[420346568,1776006639711,-2150.738,0.00014647,2]
[420346569,1776006639721,-500.0,0.00015,5]
[420346570,1776006639731,-160.0,0.00015,2]
[420346571,1776006639741,-574.75581185,0.00015073,2]
[420346572,1776006639755,-500.0,0.00015073,2]
[420346573,1776006639765,-500.0,0.00015073,2]
[420346574,1776006639930,-500.0,0.00015073,2]
[420346575,1776006639940,-500.0,0.00015073,2]
[420346576,1776006639949,-158.7958269,0.00015073,2]
[420346577,1776006639958,-500.0,0.00015073,2]
[420346578,1776006639969,-508.42731575,0.00015073,2]
[420346579,1776006639978,-500.0,0.00015073,2]
[420346580,1776006639987,-500.0,0.00015073,2]
[420346581,1776006639996,-500.0,0.00015073,2]
[420346582,1776006640006,-500.0,0.00015073,2]
[420346583,1776006640015,-500.0,0.00015096,2]
[420346584,1776006640024,-500.0,0.00015096,2]
[420346585,1776006640034,-500.0,0.00015096,2]
[420346586,1776006640043,-500.0,0.00015096,2]
[420346587,1776006640054,-436.45104943,0.00015096,2]
[420346588,1776006640063,-500.0,0.00015096,2]
[420346589,1776006640073,-276.4111282,0.00015096,2]
[420346590,1776006640083,-500.0,0.00015096,2]
[420346591,1776006640093,-500.0,0.00015096,2]
[420346592,1776006640102,-500.0,0.00015096,2]
[420346593,1776006640112,-500.0,0.00015096,2]
[420346594,1776006640121,-500.0,0.00015096,2]
[420346595,1776006640142,-500.0,0.00015096,2]
[420346596,1776006640152,-500.0,0.00015096,2]
[420346597,1776006640162,-500.0,0.00015096,2]
[420346598,1776006640172,-177.40237727,0.00015096,2]
[420346599,1776006640183,-500.0,0.00015096,2]
[420346600,1776006640193,-500.0,0.00015096,2]
[420346601,1776006640203,-500.0,0.00015096,2]
[420346602,1776006640213,-500.0,0.00015096,2]
[420346603,1776006640222,-392.62709439,0.00015096,2]
[420346604,1776006640232,-500.0,0.00015096,2]
[420346605,1776006640242,-500.0,0.00015096,2]
[420346606,1776006640252,-500.0,0.00015096,2]
[420346607,1776006640262,-500.0,0.00015096,2]
[420346608,1776006640272,-500.0,0.00015096,2]
[420346609,1776006640281,-186.59092026,0.00015097,2]
[420346610,1776006640291,-370363.91010532,0.00015098,2]
[420346611,1776006640306,-6761.64592555,0.00015098,2]
[420346613,1776006640327,-6799.31294561,0.00015098,2]
[420346614,1776006640349,-2154.50863312,0.00015098,2]
[420346615,1776006640361,-790642.0500395,0.00015098,2]
[420346616,1776006640371,-151.0,0.000151,2]
[420346618,1776006640380,-176.15,0.0001519,3]
[420346619,1776006640390,-528.47,0.0001519,3]
[420346620,1776006640400,-2230.315306,0.00015195,2]
[420346621,1776006640411,-6852.93087882,0.00015199,2]
[420346622,1776006640420,-102750.4406829,0.000152,2]
[420346623,1776006640430,-335.5265119,0.00015205,2]
[420346624,1776006640439,-1123.0,0.00015542,2]
[420346625,1776006640448,-365.0,0.00015542,2]
[420346626,1776006640458,-626.11474146,0.00015621,2]
[420346627,1776006640468,-1000.0,0.00015621,2]
[420346628,1776006640477,-1000.0,0.00015621,2]
[420346629,1776006640487,-1000.0,0.00015621,2]
[420346630,1776006640496,-1000.0,0.00015621,2]
[420346631,1776006640506,-1000.0,0.00015621,2]
[420346632,1776006640515,-680.15930035,0.00015621,2]
[420346633,1776006640525,-1000.0,0.00015621,2]
[420346634,1776006640534,-1000.0,0.00015621,2]
[420346635,1776006640543,-386.134,0.00015675,2]
[420346636,1776006640553,-188.10556855,0.00015675,2]
[420346637,1776006640562,-2312.83697232,0.00015743,2]
[420346638,1776006640573,-160.0,0.00015896,7]
[420346639,1776006640584,-1175.881136,0.00015896,7]
[420346640,1776006640595,-2191.762273,0.00015896,7]
[420346641,1776006640606,-196.09956,0.00015905,2]
[420346642,1776006640615,-317953.63751375,0.0001592,2]
[420346643,1776006640625,-500.0,0.00015973,2]
[420346644,1776006640636,-500.0,0.00015973,2]
[420346645,1776006640648,-335.83004427,0.00015973,2]
[420346646,1776006640659,-500.0,0.00015973,2]
[420346647,1776006640670,-3000.0,0.00016,2]
[420346648,1776006640679,-922.95,0.00016009,2]
[420346649,1776006640689,-3000.0,0.0001601,2]
[420346650,1776006640699,-3000.0,0.0001602,2]
[420346651,1776006640709,-3000.0,0.0001603,2]
[420346652,1776006640719,-3000.0,0.0001604,2]
[420346653,1776006640728,-3000.0,0.0001605,2]
[420346654,1776006640738,-922.95,0.00016058,2]
[420346655,1776006640750,-922.95,0.00016059,2]
[420346656,1776006640760,-3000.0,0.0001606,2]
[420346657,1776006640769,-3000.0,0.0001607,2]
[420346658,1776006640779,-3000.0,0.0001608,2]
[420346659,1776006640791,-3000.0,0.0001609,2]
[420346660,1776006640801,-3000.0,0.000161,2]
[420346662,1776006640811,-252.784589,0.00016109,2]
[420346664,1776006640821,-3000.0,0.0001611,2]
[420346666,1776006640834,-190.22,0.00016116,2]
[420346668,1776006640844,-3000.0,0.0001612,2]
[420346670,1776006640853,-922.95,0.00016129,2]
[420346673,1776006640864,-3000.0,0.0001613,2]
[420346675,1776006640874,-3000.0,0.0001614,2]
[420346676,1776006640884,-3000.0,0.0001615,2]
[420346679,1776006640895,-922.95,0.00016158,2]
[420346681,1776006640905,-3000.0,0.0001616,2]
[420346683,1776006640915,-860.28346831,0.00016168,2]
[420346684,1776006640926,-1500.0,0.00016168,2]
[420346687,1776006640936,-1500.0,0.00016168,2]
[420346689,1776006640946,-1500.0,0.00016168,2]
[420346691,1776006640956,-501.69342998,0.00016168,2]
[420346693,1776006640966,-1500.0,0.00016168,2]
[420346695,1776006640978,-759.19525566,0.00016168,2]
[420346697,1776006640988,-3000.0,0.0001617,2]
[420346699,1776006640998,-922.95,0.00016173,2]
[420346701,1776006641010,-922.95,0.00016173,2]
[420346703,1776006641021,-922.95,0.00016173,2]
[420346705,1776006641030,-922.95,0.00016173,2]
[420346707,1776006641043,-922.95,0.00016173,2]
[420346709,1776006641053,-922.95,0.00016173,2]
[420346711,1776006641064,-922.95,0.00016173,2]
[420346713,1776006641078,-922.95,0.00016173,2]
[420346715,1776006641087,-922.95,0.00016173,2]
[420346717,1776006641098,-922.95,0.00016173,2]
[420346719,1776006641109,-922.95,0.00016173,2]
[420346721,1776006641122,-922.95,0.00016173,2]
[420346723,1776006641131,-922.95,0.00016173,2]
[420346725,1776006641141,-922.95,0.00016173,2]
[420346726,1776006641152,-922.95,0.00016173,2]
[420346727,1776006641165,-922.95,0.00016173,2]
[420346728,1776006641175,-922.95,0.00016173,2]
[420346729,1776006641186,-923.18,0.00016173,2]
[420346730,1776006641198,-3000.0,0.0001618,2]
[420346731,1776006641210,-3000.0,0.0001619,2]
[420346732,1776006641219,-635.5873576,0.0001619,2]
[420346733,1776006641230,-411.5608768,0.0001619,2]
[420346734,1776006641242,-3000.0,0.000162,2]
[420346735,1776006641253,-3000.0,0.0001621,2]
[420346736,1776006641262,-3000.0,0.0001622,2]
[420346737,1776006641279,-3000.0,0.0001623,2]
[420346738,1776006641291,-3000.0,0.0001624,2]
[420346739,1776006641301,-3000.0,0.0001625,2]
[420346740,1776006641311,-3000.0,0.0001626,2]
[420346741,1776006641329,-3000.0,0.0001627,2]
[420346742,1776006641338,-3000.0,0.0001628,2]
[420346743,1776006641349,-3000.0,0.0001629,2]
[420346744,1776006641359,-1949.59906587,0.00016291,2]
[420346745,1776006641376,-3000.0,0.000163,2]
[420346746,1776006641396,-4427.531102,0.0001631,2]
[420346747,1776006641417,-339.0,0.00016316,2]
[420346748,1776006641433,-600.0,0.0001636,2]
[420346750,1776006641449,-500.0,0.00016438,2]
[420346751,1776006641464,-500.0,0.00016438,2]
[420346753,1776006641479,-500.0,0.00016438,2]
[420346755,1776006641493,-500.0,0.00016438,2]
[420346756,1776006641510,-217.50084253,0.00016438,2]
[420346757,1776006641524,-500.0,0.00016438,2]
[420346758,1776006641539,-500.0,0.00016438,2]
[420346759,1776006641554,-500.0,0.00016438,2]
[420346760,1776006641567,-585.23,0.00016438,2]
[420346761,1776006641581,-500.0,0.00016438,2]
[420346762,1776006641596,-500.0,0.00016438,2]
[420346763,1776006641607,-500.0,0.00016438,2]
[420346764,1776006641621,-500.0,0.00016438,2]
[420346765,1776006641633,-500.0,0.00016438,2]
[420346766,1776006641645,-500.0,0.00016438,2]
[420346767,1776006641657,-584.22,0.00016438,2]
[420346768,1776006641668,-500.0,0.00016438,2]
[420346769,1776006641682,-598.77,0.00016438,2]
[420346770,1776006641696,-569.61,0.00016438,2]
[420346771,1776006641709,-515.32,0.00016438,2]
[420346772,1776006641724,-256.69479404,0.00016438,2]
[420346773,1776006641736,-462.51091082,0.00016438,2]
[420346774,1776006641750,-500.0,0.00016438,2]
[420346775,1776006641764,-500.0,0.00016438,2]
[420346776,1776006641777,-500.0,0.00016438,2]
[420346777,1776006641792,-500.0,0.00016438,2]
[420346778,1776006641802,-500.0,0.00016438,2]
[420346779,1776006641814,-1353.543,0.00016438,2]
[420346780,1776006641826,-500.0,0.00016438,2]
[420346781,1776006641839,-500.0,0.00016438,2]
[420346782,1776006641855,-500.0,0.00016438,2]
[420346783,1776006641866,-590.23,0.00016438,2]
[420346784,1776006641877,-500.0,0.00016438,2]
[420346785,1776006641893,-500.0,0.00016438,2]
[420346786,1776006641910,-500.0,0.00016438,2]
[420346787,1776006641922,-500.0,0.00016438,2]
[420346788,1776006641935,-1000.0,0.00016438,2]
[420346789,1776006641949,-500.0,0.00016438,2]
[420346790,1776006641960,-500.0,0.00016438,2]
[420346791,1776006641972,-546.62218436,0.00016438,2]
[420346792,1776006641983,-528.27,0.00016438,2]
[420346793,1776006641995,-500.0,0.00016438,2]
[420346794,1776006642006,-500.0,0.00016438,2]
[420346795,1776006642019,-500.0,0.00016438,2]
[420346796,1776006642030,-500.0,0.00016438,2]
[420346797,1776006642040,-365.42579811,0.00016438,2]
[420346798,1776006642056,-500.0,0.00016438,2]
[420346799,1776006642068,-1000.0,0.00016438,2]
[420346800,1776006642080,-500.0,0.00016438,2]
[420346801,1776006642093,-500.0,0.00016438,2]
[420346802,1776006642104,-500.0,0.00016438,2]
[420346803,1776006642116,-500.0,0.00016438,2]
[420346804,1776006642127,-500.0,0.00016438,2]
[420346805,1776006642139,-500.0,0.00016438,2]
[420346806,1776006642151,-1528.0,0.00016438,2]
[420346807,1776006642162,-300.0,0.00016438,2]
[420346808,1776006642174,-300.0,0.00016438,2]
[420346809,1776006642185,-300.0,0.00016438,2]
[420346810,1776006642198,-300.0,0.00016438,2]
[420346811,1776006642211,-1000.0,0.00016521,2]
[420346812,1776006642222,-1011.81429123,0.00016521,2]
[420346813,1776006642234,-506.20334646,0.00016521,2]
[420346814,1776006642246,-352.3,0.0001656,3]
[420346815,1776006642258,-493.49449311,0.00016646,2]
[420346816,1776006642270,-1603.474277,0.0001669,7]
[420346817,1776006642281,-151.0,0.000167,2]
[420346818,1776006642292,-582.16944346,0.00016712,2]
[420346819,1776006642303,-500.0,0.00016712,2]
[420346820,1776006642315,-500.0,0.00016712,2]
[420346821,1776006642326,-500.0,0.00016712,2]
[420346822,1776006642338,-151.21,0.00016712,2]
[420346823,1776006642349,-1000.0,0.00016712,2]
[420346824,1776006642360,-638.86,0.00016712,2]
[420346825,1776006642372,-332.50009687,0.00016712,2]
[420346826,1776006642383,-500.0,0.00016712,2]
[420346827,1776006642395,-1000.0,0.00016712,2]
[420346828,1776006642407,-162.95,0.00016712,2]
[420346829,1776006642420,-1528.0,0.00016712,2]
[420346830,1776006642431,-2000.0,0.00016716,2]
[420346831,1776006642443,-1577.97312869,0.00016716,2]
[420346832,1776006642457,-1510.25899838,0.00016716,2]
[420346833,1776006642469,-2000.0,0.00016716,2]
[420346834,1776006642480,-307.03539668,0.00016873,2]
[420346835,1776006642492,-500.0,0.00016873,2]
[420346836,1776006642506,-500.0,0.00016873,2]
[420346837,1776006642517,-500.0,0.00016873,2]
[420346838,1776006642529,-500.0,0.00016873,2]
[420346839,1776006642540,-500.0,0.00016873,2]
[420346840,1776006642554,-151.0,0.00016873,2]
[420346841,1776006642565,-487.0,0.00016876,2]
[420346842,1776006642576,-487.0,0.00016876,2]
[420346843,1776006642590,-487.0,0.00016876,2]
[420346844,1776006642601,-487.0,0.00016876,2]
[420346845,1776006642612,-487.0,0.00016876,2]
[420346846,1776006642624,-487.0,0.00016876,2]
[420346847,1776006642638,-487.0,0.00016876,2]
[420346848,1776006642649,-487.0,0.00016876,2]
[420346849,1776006642660,-487.0,0.00016876,2]
[420346850,1776006642672,-487.0,0.00016876,2]
[420346851,1776006642687,-487.0,0.00016876,2]
[420346852,1776006642699,-487.0,0.00016876,2]
[420346853,1776006642711,-487.0,0.00016876,2]
[420346854,1776006642723,-487.0,0.00016876,2]
[420346855,1776006642734,-487.0,0.00016876,2]
[420346856,1776006642746,-487.0,0.00016876,2]
[420346857,1776006642759,-487.0,0.00016876,2]
[420346858,1776006642773,-487.0,0.00016876,2]
[420346859,1776006642786,-487.0,0.00016876,2]
[420346860,1776006642801,-487.0,0.00016876,2]
[420346861,1776006642814,-487.0,0.00016876,2]
[420346862,1776006642842,-564.06,0.00016876,2]
[420346863,1776006642870,-151.0,0.00016876,2]
[420346864,1776006642892,-151.0,0.00016966,2]
[420346865,1776006642905,-455.5452178,0.00016967,2]
[420346867,1776006642918,-500.0,0.00016973,2]
[420346868,1776006642931,-500.0,0.00016985,2]
[420346869,1776006642942,-500.0,0.00016985,2]
[420346871,1776006642954,-500.0,0.00016985,2]
[420346873,1776006642966,-500.0,0.00016985,2]
[420346875,1776006642979,-500.0,0.00016985,2]
[420346877,1776006642992,-505.06,0.00016985,2]
[420346880,1776006643003,-500.0,0.00016985,2]
[420346881,1776006643015,-523.19,0.00016985,2]
[420346882,1776006643027,-500.0,0.00016985,2]
[420346883,1776006643040,-500.0,0.00016985,2]
[420346884,1776006643053,-500.0,0.00016985,2]
[420346885,1776006643065,-500.0,0.00016985,2]
[420346886,1776006643077,-500.0,0.00016985,2]
[420346888,1776006643090,-500.0,0.00016985,2]
[420346890,1776006643102,-501.81,0.00016985,2]
[420346891,1776006643113,-500.0,0.00016985,2]
[420346892,1776006643123,-500.0,0.00016985,2]
[420346893,1776006643133,-134.57420189,0.00016986,2]
[420346894,1776006643353,-500.0,0.00016986,2]
[420346895,1776006643416,-500.0,0.00016986,2]
[420346896,1776006643431,-554.94,0.00016986,2]
[420346897,1776006643441,-500.0,0.00016986,2]
[420346898,1776006643491,-500.0,0.00016986,2]
[420346899,1776006643501,-500.0,0.00016986,2]
[420346900,1776006643522,-500.0,0.00016986,2]
[420346901,1776006643552,-500.0,0.00016986,2]
[420346902,1776006643689,-500.0,0.00016986,2]
[420346904,1776006643704,-500.0,0.00016986,2]
[420346905,1776006643716,-350.10065437,0.00016986,2]
[420346906,1776006643732,-500.0,0.00016986,2]
[420346907,1776006643742,-500.0,0.00016986,2]
[420346908,1776006643752,-500.0,0.00016986,2]
[420346909,1776006643781,-500.0,0.00016986,2]
[420346910,1776006643811,-1536.35,0.00016986,2]
[420346911,1776006643835,-500.0,0.00016986,2]
[420346912,1776006643847,-6102.16,0.00016986,2]
[420346913,1776006643894,-500.0,0.00016986,2]
[420346914,1776006643913,-500.0,0.00016986,2]
[420346915,1776006643952,-500.0,0.00016986,2]
[420346916,1776006644025,-500.0,0.00016986,2]
[420346917,1776006644241,-500.0,0.00016986,2]
[420346918,1776006644429,-500.0,0.00016986,2]
[420346919,1776006644533,-500.0,0.00016986,2]
[420346920,1776006644562,-500.0,0.00016986,2]
[420346921,1776006644577,-500.0,0.00016986,2]
[420346922,1776006644601,-556.87,0.00016986,2]
[420346924,1776006644612,-500.0,0.00016986,2]
[420346926,1776006644663,-500.0,0.00016986,2]
[420346927,1776006644691,-500.0,0.00016986,2]
[420346928,1776006644737,-500.0,0.00016986,2]
[420346929,1776006644794,-500.0,0.00016986,2]
[420346930,1776006645030,-500.0,0.00016986,2]
[420346931,1776006645260,-555.41,0.00016986,2]
[420346932,1776006645449,-456.17447392,0.00016986,2]
[420346933,1776006645501,-500.0,0.00016986,2]
[420346934,1776006645533,-500.0,0.00016986,2]
[420346935,1776006645587,-500.0,0.00016986,2]
[420346936,1776006645668,-5300.54,0.00016986,2]
[420346937,1776006645791,-500.0,0.00016986,2]
[420346938,1776006645939,-500.0,0.00016986,2]
[420346939,1776006646012,-500.0,0.00016986,2]
[420346940,1776006646034,-500.0,0.00016986,2]
[420346941,1776006646115,-500.0,0.00016986,2]
[420346942,1776006646293,-500.0,0.00016986,2]
[420346943,1776006646360,-3628.56,0.00016986,2]
[420346944,1776006646439,-500.0,0.00016986,2]
[420346945,1776006646470,-500.0,0.00016986,2]
[420346946,1776006646496,-500.0,0.00016986,2]
[420346947,1776006646520,-500.0,0.00016986,2]
[420346948,1776006646531,-500.0,0.00016986,2]
[420346949,1776006646542,-500.0,0.00016986,2]
[420346950,1776006646568,-2841.01,0.00016986,2]
[420346951,1776006646578,-500.0,0.00016986,2]
[420346952,1776006646589,-500.0,0.00016986,2]
[420346953,1776006646617,-645.566917,0.00016986,2]
[420346954,1776006646627,-500.0,0.00016986,2]
[420346955,1776006646641,-500.0,0.00016986,2]
[420346956,1776006646667,-500.0,0.00016986,2]
[420346957,1776006646677,-500.0,0.00016986,2]
[420346958,1776006646716,-500.0,0.00016986,2]
[420346959,1776006646727,-4228.53,0.00016986,2]
[420346960,1776006646755,-500.0,0.00016986,2]
[420346961,1776006646765,-7970.55,0.00016986,2]
[420346962,1776006646779,-6481.52,0.00016986,2]
[420346963,1776006646806,-7446.32,0.00016986,2]
[420346964,1776006646819,-500.0,0.00016986,2]
[420346965,1776006646849,-500.0,0.00016986,2]
[420346966,1776006646861,-500.0,0.00016986,2]
[420346967,1776006646888,-841.41,0.00016986,2]
[420346968,1776006647134,-500.0,0.00016986,2]
[420346969,1776006647147,-500.0,0.00016986,2]
[420346970,1776006647167,-500.0,0.00016986,2]
[420346971,1776006647220,-500.0,0.00016986,2]
[420346972,1776006647306,-500.0,0.00016986,2]
[420346973,1776006647386,-500.0,0.00016986,2]
[420346974,1776006647419,-500.0,0.00016986,2]
[420346975,1776006647462,-500.0,0.00016986,2]
[420346976,1776006647506,-500.0,0.00016986,2]
[420346977,1776006647522,-232.18696612,0.00016986,2]
[420346978,1776006647561,-5461.45,0.00016986,2]
[420346979,1776006647612,-500.0,0.00016986,2]
[420346980,1776006647639,-500.0,0.00016986,2]
[420346981,1776006647659,-500.0,0.00016986,2]
[420346982,1776006647689,-5589.2,0.00016986,2]
[420346983,1776006647722,-500.0,0.00016986,2]
[420346984,1776006647751,-500.0,0.00016986,2]
[420346985,1776006647760,-4853.12,0.00016986,2]
[420346986,1776006647784,-500.0,0.00016986,2]
[420346987,1776006647812,-500.0,0.00016986,2]
[420346988,1776006647822,-500.0,0.00016986,2]
[420346989,1776006647862,-500.0,0.00016986,2]
[420346990,1776006647874,-500.0,0.00016986,2]
[420346991,1776006647890,-686.57,0.00016986,2]
[420346992,1776006647910,-500.0,0.00016986,2]
[420346993,1776006647920,-11063.88,0.00016986,2]
[420346994,1776006647943,-500.0,0.00016986,2]
[420346995,1776006647957,-500.0,0.00016986,2]
[420346996,1776006647968,-500.0,0.00016986,2]
[420346997,1776006647993,-2127.83,0.00016986,2]
[420346998,1776006648004,-500.0,0.00016986,2]
[420346999,1776006648014,-500.0,0.00016986,2]
[420347000,1776006648051,-500.0,0.00016986,2]
[420347001,1776006648061,-600.66,0.00016986,2]
[420347002,1776006648098,-5889.93,0.00016986,2]
[420347003,1776006648108,-500.0,0.00016986,2]
[420347004,1776006648121,-500.0,0.00016986,2]
[420347005,1776006648134,-500.0,0.00016986,2]
[420347006,1776006648165,-506.34,0.00016986,2]
[420347007,1776006648178,-500.0,0.00016986,2]
[420347008,1776006648190,-601.36,0.00016986,2]
[420347009,1776006648216,-500.0,0.00016986,2]
[420347010,1776006648226,-500.0,0.00016986,2]
[420347011,1776006648239,-500.0,0.00016986,2]
[420347012,1776006648263,-500.0,0.00016986,2]
[420347013,1776006648294,-539.84,0.00016986,2]
[420347014,1776006648303,-500.0,0.00016986,2]
[420347015,1776006648315,-500.0,0.00016986,2]
[420347016,1776006648334,-500.0,0.00016986,2]
[420347017,1776006648343,-500.0,0.00016986,2]
[420347018,1776006648353,-500.0,0.00016986,2]
[420347019,1776006648383,-500.0,0.00016986,2]
[420347020,1776006648392,-500.0,0.00016986,2]
[420347021,1776006648402,-500.0,0.00016986,2]
[420347022,1776006648441,-500.0,0.00016986,2]
[420347023,1776006648452,-500.0,0.00016986,2]
[420347024,1776006648495,-500.0,0.00016986,2]
[420347025,1776006648509,-500.0,0.00016986,2]
[420347026,1776006648519,-500.0,0.00016986,2]
[420347028,1776006648546,-500.0,0.00016986,2]
[420347029,1776006648556,-500.0,0.00016986,2]
[420347030,1776006648565,-500.0,0.00016986,2]
[420347031,1776006648593,-500.0,0.00016986,2]
[420347032,1776006648602,-500.0,0.00016986,2]
[420347033,1776006648618,-500.0,0.00016986,2]
[420347034,1776006648632,-500.0,0.00016986,2]
[420347036,1776006648642,-500.0,0.00016986,2]
[420347037,1776006648651,-500.0,0.00016986,2]
[420347038,1776006648666,-500.0,0.00016986,2]
[420347039,1776006648681,-500.0,0.00016986,2]
[420347040,1776006648704,-500.0,0.00016986,2]
[420347041,1776006648714,-506.34,0.00016986,2]
[420347042,1776006648725,-1257.0065,0.00016986,2]
[420347043,1776006648743,-500.0,0.00016986,2]
[420347045,1776006648754,-500.0,0.00016986,2]
[420347046,1776006648763,-500.0,0.00016986,2]
[420347048,1776006648773,-500.0,0.00016986,2]
[420347050,1776006648798,-500.0,0.00016986,2]
[420347051,1776006648810,-500.0,0.00016986,2]
[420347053,1776006648821,-500.0,0.00016986,2]
[420347054,1776006648840,-500.0,0.00016986,2]
[420347055,1776006648849,-500.0,0.00016986,2]
[420347056,1776006648862,-642.19816127,0.00016986,2]
[420347057,1776006648895,-500.0,0.00016986,2]
[420347058,1776006648905,-500.0,0.00016986,2]
[420347059,1776006648915,-500.0,0.00016986,2]
[420347060,1776006648942,-500.0,0.00016986,2]
[420347061,1776006648952,-500.0,0.00016986,2]
[420347062,1776006648967,-500.0,0.00016986,2]
[420347063,1776006648993,-500.0,0.00016986,2]
[420347064,1776006649008,-500.0,0.00016986,2]
[420347065,1776006649023,-500.0,0.00016986,2]
[420347066,1776006649050,-500.0,0.00016986,2]
[420347067,1776006649059,-500.0,0.00016986,2]
[420347068,1776006649073,-500.0,0.00016986,2]
[420347069,1776006649101,-500.0,0.00016986,2]
[420347070,1776006649111,-500.0,0.00016986,2]
[420347071,1776006649121,-500.0,0.00016986,2]
[420347072,1776006649139,-231.32,0.00016986,2]
[420347073,1776006649150,-500.0,0.00016986,2]
[420347074,1776006649160,-500.0,0.00016986,2]
[420347075,1776006649179,-500.0,0.00016986,2]
[420347076,1776006649190,-500.0,0.00016986,2]
[420347077,1776006649200,-500.0,0.00016986,2]
[420347078,1776006649215,-518.36368787,0.00016986,2]
[420347079,1776006649233,-500.0,0.00016986,2]
[420347080,1776006649242,-1161.4384,0.00016986,2]
[420347081,1776006649261,-500.0,0.00016986,2]
[420347082,1776006649274,-500.0,0.00016986,2]
[420347083,1776006649283,-500.0,0.00016986,2]
[420347084,1776006649309,-520.4,0.00016986,2]
[420347085,1776006649319,-500.0,0.00016986,2]
[420347086,1776006649329,-500.0,0.00016986,2]
[420347087,1776006649350,-478.36,0.00016986,2]
[420347088,1776006649359,-500.0,0.00016986,2]
[420347089,1776006649369,-645.86,0.00016986,2]
[420347090,1776006649383,-500.0,0.00016986,2]
[420347091,1776006649396,-500.0,0.00016986,2]
[420347092,1776006649406,-500.0,0.00016986,2]
[420347093,1776006649418,-500.0,0.00016986,2]
[420347094,1776006649434,-500.0,0.00016986,2]
[420347095,1776006649451,-500.0,0.00016986,2]
[420347096,1776006649461,-500.0,0.00016986,2]
[420347097,1776006649471,-500.0,0.00016986,2]
[420347098,1776006649481,-500.0,0.00016986,2]
[420347099,1776006649497,-500.0,0.00016986,2]
[420347100,1776006649506,-500.0,0.00016986,2]
[420347101,1776006649516,-500.0,0.00016986,2]
[420347102,1776006649526,-500.0,0.00016986,2]
[420347103,1776006649551,-500.0,0.00016986,2]
[420347104,1776006649561,-500.0,0.00016986,2]
[420347105,1776006649570,-500.0,0.00016986,2]